bitfinex/quotes_SOLUSD_20230113
["timestamp","ask_amount","ask_price","bid_price","bid_amount"]
[1673588213960,20.0,16.854,16.83,136.5584]
[1673588214171,22.36,16.85,16.831,112.4203]
[1673588214393,38.92,16.849,16.831,112.4203]
[1673588215027,74.68193348,16.849,16.831,112.4203]
[1673588219020,105.14877149,16.849,16.83,114.1184]
[1673588219429,10.0,16.848,16.825,111.5007]
[1673588219657,38.92,16.847,16.825,111.5007]
[1673588219853,105.14877149,16.847,16.825,111.5007]
[1673588220062,35.76193348,16.846,16.825,111.5007]
[1673588220274,38.92,16.845,16.825,111.5007]
[1673588220596,38.92,16.845,16.826,10.0]
[1673588221840,38.92,16.845,16.825,111.5007]
[1673588225229,20.0,16.845,16.827,10.0]
[1673588225436,20.0,16.849,16.827,10.0]
[1673588225757,20.0,16.849,16.828,0.96]
[1673588226062,23.96,16.85,16.83,23.88]
[1673588226259,23.96,16.85,16.831,10.96]
[1673588226470,23.96,16.85,16.832,20.0]
[1673588226700,23.96,16.85,16.833,10.0]
[1673588226885,23.96,16.85,16.834,0.96]
[1673588227096,30.46683801,16.855,16.834,20.0]
[1673588227307,24.05,16.85,16.831,10.0]
[1673588227516,24.05,16.85,16.832,0.96]
[1673588228802,35.76193348,16.854,16.832,0.96]
[1673588228993,66.22877149,16.854,16.832,20.0]
[1673588229207,30.46683801,16.853,16.832,20.0]
[1673588229409,30.46683801,16.853,16.831,10.0]
[1673588229410,66.22877149,16.853,16.831,10.0]
[1673588229623,20.0,16.852,16.831,10.0]
[1673588229847,30.46683801,16.852,16.831,10.0]
[1673588230254,18.92,16.851,16.831,10.0]
[1673588230465,18.92,16.851,16.832,0.96]
[1673588231091,44.05,16.85,16.832,0.96]
[1673588231321,18.92,16.849,16.831,0.96]
[1673588231537,24.05,16.85,16.832,10.0]
[1673588231722,24.05,16.85,16.833,20.0]
[1673588231929,24.05,16.85,16.833,138.6338]
[1673588232180,30.07970638,16.876,16.841,177.2]
[1673588232363,144.14474258,16.879,16.87,24.21]
[1673588232567,71.81510274,16.88,16.871,20.0]
[1673588232777,71.81510274,16.88,16.86,24.21]
[1673588233001,71.81510274,16.88,16.861,20.96]
[1673588233620,71.81510274,16.88,16.862,10.0]
[1673588233831,71.81510274,16.88,16.863,20.0]
[1673588234042,71.81510274,16.88,16.86,23.92]
[1673588234258,120.02,16.87,16.84,120.12]
[1673588234578,118.7691594,16.869,16.849,108.8559]
[1673588235115,118.7691594,16.869,16.85,10.0]
[1673588235317,17.0,16.868,16.85,10.0]
[1673588235539,0.96,16.867,16.85,10.0]
[1673588235719,17.0,16.868,16.85,10.0]
[1673588235933,23.94,16.87,16.85,10.0]
[1673588235934,23.94,16.87,16.85,34.0]
[1673588236161,96.2,16.88,16.852,10.0]
[1673588236162,4.87963,16.879,16.852,10.0]
[1673588236370,24.87963,16.879,16.853,20.0]
[1673588236585,24.87963,16.879,16.853,43.63608711]
[1673588236987,24.87963,16.879,16.854,0.96]
[1673588237845,20.0,16.879,16.855,10.0]
[1673588238371,20.0,16.879,16.856,0.96]
[1673588239184,1.92,16.878,16.856,0.96]
[1673588239415,21.92,16.878,16.854,23.63608711]
[1673588239624,10.0,16.877,16.853,20.0]
[1673588239830,21.92,16.876,16.852,20.0]
[1673588240032,52.38683801,16.876,16.852,20.0]
[1673588240242,47.46683801,16.875,16.852,20.0]
[1673588240442,1.92,16.874,16.852,20.0]
[1673588240659,52.38683801,16.874,16.852,20.0]
[1673588240865,47.46683801,16.873,16.853,0.96]
[1673588241099,1.92,16.872,16.853,0.96]
[1673588241820,1.92,16.872,16.852,20.0]
[1673588242238,1.92,16.872,16.853,10.0]
[1673588242552,20.0,16.874,16.853,10.0]
[1673588242765,20.0,16.874,16.854,20.0]
[1673588243189,20.0,16.879,16.855,0.96]
[1673588243385,30.46683801,16.875,16.855,0.96]
[1673588243596,20.0,16.874,16.854,20.0]
[1673588243810,20.0,16.874,16.852,20.0]
[1673588244038,30.46683801,16.873,16.852,20.0]
[1673588244559,18.92,16.872,16.852,20.0]
[1673588244777,18.92,16.872,16.853,0.96]
[1673588244988,49.38683801,16.872,16.853,0.96]
[1673588245196,30.46683801,16.871,16.853,0.96]
[1673588245411,18.92,16.87,16.852,20.0]
[1673588245613,20.0,16.869,16.85,22.39]
[1673588245823,18.92,16.868,16.849,108.8559]
[1673588246039,20.0,16.867,16.849,108.8559]
[1673588246260,18.92,16.866,16.849,108.8559]
[1673588246477,49.38683801,16.866,16.849,108.8559]
[1673588246665,20.0,16.865,16.849,108.8559]
[1673588246875,18.92,16.864,16.849,108.8559]
[1673588248149,49.38683801,16.864,16.849,108.8559]
[1673588249211,30.46683801,16.863,16.849,108.8559]
[1673588249523,18.92,16.862,16.849,108.8559]
[1673588249920,49.38683801,16.862,16.849,108.8559]
[1673588256340,22.3,16.88,16.85,44.59]
[1673588256556,60.03083151,16.902,16.85,44.59]
[1673588256557,102.21013892,16.9,16.851,24.8902]
[1673588256759,4.87963,16.899,16.852,183.04991]
[1673588256970,4.87963,16.899,16.854,10.0]
[1673588257295,4.87963,16.899,16.855,25.84904]
[1673588257503,22.39,16.88,16.855,20.96]
[1673588258651,22.39,16.88,16.856,23.63608711]
[1673588258861,22.39,16.88,16.857,10.96]
[1673588259071,298.4794,16.889,16.859,10.0]
[1673588259392,298.4794,16.889,16.86,20.96]
[1673588259393,4.87963,16.888,16.86,20.96]
[1673588259587,4.87963,16.888,16.861,10.0]
[1673588259803,4.87963,16.888,16.862,0.96]
[1673588260014,4.87963,16.888,16.863,10.0]
[1673588260218,24.87963,16.888,16.864,20.96]
[1673588260451,1.92,16.887,16.864,20.96]
[1673588260662,20.0,16.887,16.865,26.53507863]
[1673588260870,20.0,16.887,16.866,10.96]
[1673588261282,20.0,16.888,16.866,10.96]
[1673588261510,197.2,16.888,16.864,20.0]
[1673588261702,14.87963,16.887,16.862,112.764]
[1673588261918,10.0,16.885,16.863,20.0]
[1673588262240,26.79963,16.884,16.863,20.0]
[1673588262868,17.0,16.883,16.863,20.0]
[1673588263181,24.87963,16.884,16.863,20.0]
[1673588263394,20.0,16.884,16.863,30.0]
[1673588263590,20.0,16.888,16.863,30.0]
[1673588264010,20.0,16.888,16.864,26.53507863]
[1673588264237,20.0,16.888,16.865,20.0]
[1673588264448,20.0,16.888,16.866,117.6066]
[1673588264965,18.92,16.887,16.866,117.6066]
[1673588265186,24.87963,16.886,16.862,112.764]
[1673588265374,33.79963,16.885,16.862,112.764]
[1673588265581,24.87963,16.884,16.862,112.764]
[1673588265786,23.79963,16.883,16.862,112.764]
[1673588266000,1.9627,16.911,16.862,112.764]
[1673588266236,119.6815,16.899,16.871,10.0]
[1673588266434,4.87963,16.898,16.871,124.8261]
[1673588266864,4.87963,16.898,16.872,20.0]
[1673588267175,45.28174164,16.898,16.872,20.0]
[1673588268207,22.18,16.89,16.86,22.54]
[1673588268443,24.87963,16.889,16.861,116.3387]
[1673588268631,23.79963,16.888,16.861,116.3387]
[1673588268856,34.87963,16.887,16.861,116.3387]
[1673588269077,17.96,16.886,16.861,116.3387]
[1673588269285,20.96,16.885,16.861,116.3387]
[1673588269596,17.96,16.884,16.861,116.3387]
[1673588269782,0.96,16.883,16.861,116.3387]
[1673588269992,31.42683801,16.883,16.861,116.3387]
[1673588270211,48.42683801,16.882,16.861,116.3387]
[1673588270417,17.96,16.881,16.861,116.3387]
[1673588270630,0.96,16.88,16.861,116.3387]
[1673588270845,0.96,16.879,16.861,116.3387]
[1673588271057,31.42683801,16.879,16.861,116.3387]
[1673588271270,17.96,16.878,16.861,116.3387]
[1673588271488,0.96,16.877,16.862,20.0]
[1673588271698,0.96,16.876,16.862,20.0]
[1673588271907,0.96,16.875,16.861,116.3387]
[1673588272218,0.96,16.874,16.861,116.3387]
[1673588272433,0.96,16.873,16.85,121.85]
[1673588272643,0.96,16.872,16.852,111.5215]
[1673588272831,0.96,16.871,16.853,10.0]
[1673588273048,0.96,16.87,16.853,10.0]
[1673588273269,0.96,16.87,16.852,111.5215]
[1673588273270,0.96,16.869,16.852,111.5215]
[1673588273464,0.96,16.868,16.852,111.5215]
[1673588273670,0.96,16.867,16.852,111.5215]
[1673588273900,0.96,16.866,16.852,111.5215]
[1673588274114,0.96,16.865,16.852,111.5215]
[1673588275044,0.96,16.865,16.853,20.0]
[1673588275252,0.96,16.865,16.852,111.5215]
[1673588275463,0.96,16.864,16.852,111.5215]
[1673588275685,0.96,16.864,16.85,22.29]
[1673588275894,0.96,16.863,16.849,112.9676]
[1673588276111,0.96,16.862,16.849,112.9676]
[1673588276310,20.0,16.866,16.849,112.9676]
[1673588276531,17.0,16.865,16.849,112.9676]
[1673588276838,21.92,16.864,16.841,10.0]
[1673588277052,17.0,16.863,16.846,112.9676]
[1673588277245,1.92,16.862,16.846,112.9676]
[1673588277667,1.92,16.862,16.841,10.0]
[1673588277668,21.92,16.862,16.83,44.77]
[1673588277881,21.92,16.862,16.819,393.68524763]
[1673588277882,3.79193227,16.859,16.819,135.42313267]
[1673588278091,3.79193227,16.857,16.811,118.0599]
[1673588278318,4.04683198,16.855,16.811,122.96174]
[1673588278521,4.04683198,16.853,16.811,122.96174]
[1673588278731,4.04683198,16.853,16.812,10.0]
[1673588278732,14.04683198,16.849,16.812,10.0]
[1673588279052,14.04683198,16.849,16.811,118.0599]
[1673588279053,22.39,16.84,16.811,118.0599]
[1673588279368,37.96,16.839,16.811,118.0599]
[1673588279573,0.96,16.838,16.811,118.0599]
[1673588279777,0.96,16.837,16.811,118.0599]
[1673588279981,2.75823556,16.845,16.82,22.39]
[1673588280183,0.96,16.844,16.821,118.0599]
[1673588280397,0.96,16.843,16.821,118.0599]
[1673588280607,0.96,16.842,16.821,118.0599]
[1673588280938,0.96,16.841,16.822,10.0]
[1673588281152,0.96,16.84,16.823,20.0]
[1673588281362,0.96,16.839,16.824,1.92]
[1673588281567,0.96,16.84,16.824,1.92]
[1673588281568,4.87963,16.848,16.824,1.92]
[1673588281776,30.46683801,16.844,16.824,1.92]
[1673588282198,30.46683801,16.844,16.823,20.0]
[1673588282407,35.34646801,16.844,16.822,20.0]
[1673588282945,49.38683801,16.843,16.822,20.0]
[1673588283145,49.38683801,16.843,16.81,22.42]
[1673588283146,22.39,16.84,16.812,117.6152]
[1673588283355,43.79963,16.839,16.812,237.4094]
[1673588283888,43.79963,16.839,16.803,119.2111]
[1673588283889,73.1896539,16.838,16.803,119.2111]
[1673588284077,111.74,16.83,16.804,119.9306]
[1673588284287,18.92,16.829,16.804,119.9306]
[1673588284509,20.0,16.828,16.804,119.9306]
[1673588284724,28.92,16.827,16.804,119.9306]
[1673588284918,20.0,16.826,16.804,119.9306]
[1673588285127,18.92,16.825,16.804,119.9306]
[1673588285342,20.0,16.824,16.804,119.9306]
[1673588285548,0.96,16.823,16.804,119.9306]
[1673588285770,10.0,16.838,16.81,22.38]
[1673588285978,24.87963,16.837,16.81,111.96]
[1673588286194,30.46683801,16.836,16.81,22.54]
[1673588286386,24.87963,16.835,16.81,22.54]
[1673588286596,4.87963,16.834,16.811,20.0]
[1673588287261,1.92,16.833,16.811,20.0]
[1673588287442,18.92,16.833,16.811,20.0]
[1673588287651,18.92,16.833,16.81,22.54]
[1673588287860,24.87963,16.832,16.805,10.0]
[1673588288066,18.92,16.831,16.805,10.0]
[1673588288274,20.0,16.83,16.804,119.9306]
[1673588288487,18.92,16.829,16.804,119.9306]
[1673588288707,17.0,16.829,16.805,10.0]
[1673588288912,17.0,16.829,16.81,22.29]
[1673588289126,17.0,16.829,16.811,20.0]
[1673588289335,17.0,16.829,16.812,0.96]
[1673588289561,17.0,16.829,16.812,0.46]
[1673588289754,17.0,16.829,16.811,20.0]
[1673588289964,1.92,16.828,16.811,20.0]
[1673588291045,1.92,16.828,16.81,22.29]
[1673588291260,52.38683801,16.828,16.805,10.0]
[1673588291573,17.0,16.827,16.805,10.0]
[1673588291773,21.92,16.826,16.805,10.0]
[1673588291984,17.0,16.825,16.81,22.39]
[1673588292196,20.96,16.824,16.81,22.39]
[1673588292411,17.0,16.823,16.81,22.39]
[1673588292730,17.0,16.823,16.804,119.9306]
[1673588292731,0.96,16.822,16.805,10.0]
[1673588292937,0.96,16.822,16.806,20.0]
[1673588293139,1.92,16.822,16.806,20.0]
[1673588293457,0.96,16.822,16.806,20.0]
[1673588293665,0.96,16.822,16.804,119.9306]
[1673588293666,0.96,16.822,16.805,20.0]
[1673588294290,1.92,16.822,16.805,20.0]
[1673588294501,0.96,16.821,16.805,30.0]
[1673588294711,0.96,16.82,16.805,30.0]
[1673588294926,0.96,16.819,16.805,30.0]
[1673588295144,0.96,16.818,16.805,30.0]
[1673588295542,17.0,16.823,16.806,10.0]
[1673588295753,17.0,16.824,16.806,10.0]
[1673588295963,1.92,16.822,16.806,10.0]
[1673588296485,0.96,16.822,16.806,10.0]
[1673588296700,0.96,16.823,16.806,10.0]
[1673588297752,0.96,16.822,16.806,10.0]
[1673588298699,10.0,16.836,16.806,10.0]
[1673588298914,30.46683801,16.827,16.806,10.0]
[1673588299124,20.0,16.826,16.806,10.0]
[1673588299331,20.0,16.826,16.805,30.0]
[1673588299541,50.46683801,16.826,16.81,22.29]
[1673588299967,17.96,16.825,16.81,22.29]
[1673588300165,20.96,16.824,16.806,42.59490672]
[1673588300379,5.83963,16.823,16.795,118.1884]
[1673588300613,44.84,16.82,16.795,118.1884]
[1673588300927,10.0,16.818,16.795,118.1884]
[1673588301146,25.83963,16.817,16.795,118.1884]
[1673588301351,22.83963,16.816,16.781,10.0]
[1673588301541,22.35,16.81,16.786,118.1884]
[1673588301757,17.96,16.809,16.786,118.1884]
[1673588302196,20.96,16.808,16.786,118.1884]
[1673588302494,17.96,16.807,16.786,118.1884]
[1673588302705,17.0,16.807,16.79,22.22]
[1673588303246,17.0,16.807,16.791,20.0]
[1673588303991,10.0,16.823,16.791,20.0]
[1673588304179,20.0,16.821,16.792,10.0]
[1673588304510,30.46683801,16.817,16.794,10.0]
[1673588304711,10.0,16.829,16.8,22.33]
[1673588304927,30.46683801,16.824,16.8,22.33]
[1673588305141,30.46683801,16.824,16.801,20.0]
[1673588305456,4.87963,16.829,16.802,10.96]
[1673588305644,4.87963,16.828,16.803,20.0]
[1673588305868,4.87963,16.828,16.804,118.2729]
[1673588306072,4.87963,16.828,16.8,22.33]
[1673588306393,10.0,16.826,16.8,22.33]
[1673588306717,55.34646801,16.825,16.8,22.33]
[1673588306908,5.83963,16.824,16.795,118.2729]
[1673588307122,35.83963,16.823,16.795,118.2729]
[1673588307443,22.39,16.82,16.795,118.2729]
[1673588307657,20.96,16.819,16.795,118.2729]
[1673588307867,20.96,16.819,16.796,10.0]
[1673588307868,17.96,16.818,16.796,10.0]
[1673588308060,20.96,16.817,16.796,10.0]
[1673588308272,17.96,16.816,16.796,10.0]
[1673588308493,20.96,16.815,16.796,10.0]
[1673588308699,17.96,16.814,16.796,10.0]
[1673588309116,17.96,16.814,16.795,118.2729]
[1673588311031,17.0,16.814,16.795,118.2729]
[1673588311350,10.0,16.832,16.8,19.99]
[1673588311535,4.87963,16.831,16.801,20.0]
[1673588311865,10.0,16.83,16.801,20.0]
[1673588312081,4.87963,16.829,16.801,20.0]
[1673588312264,24.87963,16.829,16.801,20.0]
[1673588312803,24.87963,16.829,16.803,10.0]
[1673588313017,4.87963,16.829,16.804,133.9525]
[1673588313637,24.87963,16.829,16.804,133.9525]
[1673588313848,18.92,16.828,16.804,133.9525]
[1673588314289,20.0,16.827,16.804,133.9525]
[1673588314495,18.92,16.826,16.804,133.9525]
[1673588314685,20.0,16.825,16.804,133.9525]
[1673588314896,18.92,16.824,16.804,133.9525]
[1673588315321,4.87963,16.823,16.804,133.9525]
[1673588315527,18.92,16.822,16.804,133.9525]
[1673588316279,18.92,16.822,16.803,112.3904]
[1673588316493,18.92,16.822,16.796,112.6305]
[1673588316494,20.0,16.821,16.796,112.6305]
[1673588316710,10.0,16.819,16.796,112.6305]
[1673588316899,17.96,16.818,16.796,112.6305]
[1673588317109,25.83963,16.817,16.796,112.6305]
[1673588317335,17.96,16.816,16.796,112.6305]
[1673588317533,0.96,16.815,16.796,112.6305]
[1673588317858,20.96,16.815,16.796,139.16557863]
[1673588318070,17.96,16.814,16.796,112.6305]
[1673588318261,0.96,16.813,16.796,112.6305]
[1673588318473,0.96,16.812,16.796,112.6305]
[1673588318697,0.96,16.811,16.796,112.6305]
[1673588318894,17.0,16.814,16.797,10.0]
[1673588319107,0.96,16.813,16.797,10.0]
[1673588319628,20.0,16.815,16.797,36.53507863]
[1673588319832,20.0,16.822,16.798,0.96]
[1673588320057,19.93,16.83,16.8,20.09]
[1673588320266,10.0,16.828,16.801,10.96]
[1673588320593,20.0,16.827,16.802,20.0]
[1673588320785,24.87963,16.827,16.803,110.8664]
[1673588321202,10.0,16.825,16.8,20.09]
[1673588321411,24.87963,16.824,16.796,139.16557863]
[1673588321622,4.87963,16.823,16.796,139.16557863]
[1673588321839,10.0,16.822,16.796,139.16557863]
[1673588322056,4.87963,16.821,16.796,139.16557863]
[1673588322253,18.92,16.82,16.796,112.6305]
[1673588322468,4.87963,16.819,16.796,112.6305]
[1673588322680,18.92,16.818,16.796,112.6305]
[1673588322889,23.79963,16.818,16.796,112.6305]
[1673588323211,20.0,16.817,16.796,112.6305]
[1673588323419,18.92,16.816,16.796,112.6305]
[1673588323623,20.0,16.815,16.796,112.6305]
[1673588323833,18.92,16.814,16.796,112.6305]
[1673588325317,396.6,16.821,16.8,20.1]
[1673588325511,113.1119,16.827,16.8,20.1]
[1673588325736,4.87963,16.826,16.801,46.53507863]
[1673588325935,4.87963,16.826,16.802,10.0]
[1673588326144,4.87963,16.826,16.803,20.0]
[1673588326353,4.87963,16.826,16.804,108.7645]
[1673588326575,4.87963,16.826,16.805,10.0]
[1673588326774,113.1119,16.829,16.805,10.0]
[1673588326991,396.6,16.833,16.805,10.0]
[1673588327206,20.0,16.832,16.805,36.53507863]
[1673588327405,20.0,16.832,16.805,10.0]
[1673588329209,20.0,16.832,16.805,36.53507863]
[1673588330387,18.92,16.831,16.805,36.53507863]
[1673588330581,20.0,16.83,16.805,36.53507863]
[1673588331122,20.0,16.832,16.805,36.53507863]
[1673588331332,20.0,16.832,16.805,10.0]
[1673588332072,18.92,16.831,16.804,108.7645]
[1673588332288,20.0,16.83,16.804,108.7645]
[1673588332512,18.92,16.829,16.804,108.7645]
[1673588332724,20.0,16.828,16.804,108.7645]
[1673588332929,18.92,16.827,16.804,108.7645]
[1673588333236,20.0,16.826,16.804,108.7645]
[1673588333423,18.92,16.825,16.804,108.7645]
[1673588334495,18.92,16.825,16.791,10.0]
[1673588334705,4.87963,16.824,16.798,116.4438]
[1673588334898,18.92,16.823,16.798,116.4438]
[1673588335121,24.87963,16.822,16.798,116.4438]
[1673588335324,23.79963,16.821,16.798,116.4438]
[1673588335542,4.87963,16.82,16.798,116.4438]
[1673588335745,18.92,16.819,16.798,116.4438]
[1673588335954,20.0,16.818,16.798,116.4438]
[1673588336289,18.92,16.817,16.798,116.4438]
[1673588336677,20.0,16.816,16.798,116.4438]
[1673588336909,18.92,16.815,16.798,116.4438]
[1673588338631,18.92,16.815,16.786,10.0]
[1673588338909,23.79963,16.815,16.793,119.3857]
[1673588340278,4.87963,16.815,16.793,119.3857]
[1673588340482,20.0,16.816,16.793,119.3857]
[1673588340668,20.0,16.819,16.795,10.0]
[1673588340877,20.0,16.823,16.795,10.0]
[1673588341095,4.87963,16.822,16.795,36.53507863]
[1673588341387,4.02267402,16.818,16.778,119.3857]
[1673588341521,4.02267402,16.799,16.778,119.3857]
[1673588341723,24.02267402,16.799,16.778,119.3857]
[1673588341945,18.92,16.798,16.778,119.3857]
[1673588342155,24.02267402,16.797,16.779,10.0]
[1673588342360,18.92,16.796,16.779,10.0]
[1673588342576,22.94267402,16.796,16.778,119.3857]
[1673588342896,20.0,16.795,16.778,119.3857]
[1673588343098,17.96,16.794,16.778,119.3857]
[1673588343314,0.96,16.793,16.778,119.3857]
[1673588343502,31.42683801,16.793,16.778,119.3857]
[1673588343710,48.42683801,16.792,16.778,119.3857]
[1673588343924,17.96,16.791,16.778,119.3857]
[1673588344251,0.96,16.79,16.778,119.3857]
[1673588345176,20.96,16.79,16.776,137.2435444]
[1673588345511,17.0,16.789,16.776,137.2435444]
[1673588345728,0.96,16.788,16.776,137.2435444]
[1673588346669,17.0,16.789,16.776,137.2435444]
[1673588346884,2.92594466,16.797,16.777,10.0]
[1673588347073,1.92,16.796,16.777,10.0]
[1673588347503,38.92,16.796,16.777,10.0]
[1673588347821,69.38683801,16.796,16.776,137.2435444]
[1673588348031,20.0,16.796,16.777,10.0]
[1673588348236,23.42147796,16.799,16.777,10.0]
[1673588348754,30.46683801,16.798,16.777,10.0]
[1673588348965,23.42147796,16.797,16.779,10.0]
[1673588349166,20.0,16.797,16.779,10.0]
[1673588349586,23.42147796,16.803,16.779,10.0]
[1673588350008,1.92,16.802,16.779,10.0]
[1673588350218,21.92,16.802,16.779,10.0]
[1673588350530,20.11,16.79,16.776,137.2435444]
[1673588350968,38.92,16.789,16.776,137.2435444]
[1673588352961,40.46683801,16.788,16.776,137.2435444]
[1673588353158,17.96,16.787,16.776,137.2435444]
[1673588353384,30.46683801,16.788,16.776,137.2435444]
[1673588354315,10.0,16.795,16.776,137.2435444]
[1673588354547,4.87963,16.795,16.776,137.2435444]
[1673588354962,4.87963,16.795,16.777,10.0]
[1673588355585,4.87963,16.795,16.776,137.2435444]
[1673588356322,30.46683801,16.794,16.776,137.2435444]
[1673588356742,38.92,16.793,16.776,137.2435444]
[1673588357268,30.46683801,16.792,16.776,137.2435444]
[1673588357478,38.92,16.791,16.776,137.2435444]
[1673588358645,65.23963,16.79,16.758,100.5465109]
[1673588358852,32.83963,16.789,16.762,112.9387]
[1673588359164,28.65531127,16.788,16.762,112.4387]
[1673588359381,3.77568127,16.786,16.762,112.4387]
[1673588359582,0.96,16.785,16.763,10.0]
[1673588359797,3.77568127,16.783,16.763,10.0]
[1673588359990,1.92,16.782,16.763,10.0]
[1673588360200,3.77568127,16.781,16.763,10.0]
[1673588360417,1.92,16.78,16.763,10.0]
[1673588360629,38.92,16.78,16.763,317.3307568]
[1673588360844,20.19,16.79,16.764,10.0]
[1673588361055,20.0,16.789,16.764,10.0]
[1673588361265,20.0,16.789,16.765,10.0]
[1673588361474,396.6,16.793,16.765,10.0]
[1673588361684,396.6,16.793,16.765,34.02023571]
[1673588361900,396.6,16.793,16.766,10.0]
[1673588362116,396.6,16.793,16.766,34.02023571]
[1673588362315,396.6,16.803,16.77,100.55]
[1673588362525,401.47963,16.803,16.771,10.0]
[1673588362719,401.47963,16.803,16.773,10.0]
[1673588362932,401.47963,16.803,16.774,20.0]
[1673588363174,401.47963,16.803,16.775,10.0]
[1673588363377,401.47963,16.803,16.776,113.5321]
[1673588363573,401.47963,16.803,16.795,0.29771]
[1673588363782,4.87963,16.803,16.795,0.29771]
[1673588364195,18.92,16.802,16.795,0.29771]
[1673588364531,58.38,16.807,16.795,176.7876465]
[1673588364745,4.87963,16.807,16.795,176.7876465]
[1673588365673,20.11,16.81,16.795,176.7876465]
[1673588366208,20.0,16.809,16.795,176.7876465]
[1673588367453,17.96,16.808,16.795,176.7876465]
[1673588367665,20.96,16.807,16.795,176.7876465]
[1673588367874,20.0,16.807,16.795,176.7876465]
[1673588368317,20.0,16.809,16.795,176.7876465]
[1673588368506,20.0,16.813,16.795,176.7876465]
[1673588368716,22.55,16.81,16.795,176.7876465]
[1673588369156,20.0,16.809,16.795,176.7876465]
[1673588369784,17.96,16.808,16.795,176.7876465]
[1673588369989,20.0,16.807,16.795,176.7876465]
[1673588371253,20.0,16.813,16.795,176.7876465]
[1673588371881,20.0,16.813,16.796,10.0]
[1673588372495,22.4,16.82,16.796,74.15214878]
[1673588372705,110.3171,16.828,16.797,34.03860883]
[1673588372912,35.34646801,16.827,16.798,10.0]
[1673588373143,4.87963,16.827,16.8,22.53]
[1673588373353,22.4,16.83,16.801,20.0]
[1673588373568,4.87963,16.829,16.801,84.15214878]
[1673588373778,4.87963,16.829,16.802,10.0]
[1673588374205,4.87963,16.829,16.804,10.0]
[1673588374415,24.87963,16.829,16.804,10.0]
[1673588374611,24.87963,16.829,16.804,186.4899365]
[1673588374821,4.87963,16.829,16.804,186.4899365]
[1673588375889,4.87963,16.829,16.805,10.0]
[1673588376207,24.87963,16.829,16.805,10.0]
[1673588376729,20.0,16.828,16.805,186.4899365]
[1673588377134,18.92,16.827,16.805,186.4899365]
[1673588377465,20.0,16.826,16.805,186.4899365]
[1673588377678,17.96,16.825,16.805,186.4899365]
[1673588377881,0.96,16.824,16.805,186.4899365]
[1673588378082,0.96,16.823,16.805,186.4899365]
[1673588379143,0.96,16.823,16.805,176.4899365]
[1673588379357,0.96,16.822,16.805,176.4899365]
[1673588379549,0.96,16.821,16.805,176.4899365]
[1673588379761,17.96,16.821,16.805,176.4899365]
[1673588380192,20.96,16.82,16.805,176.4899365]